[Event "DEN-ch 2019"]
[Site "Svendborg"]
[Date "2019.04.18"]
[Round "6.4"]
[White "Bjerre, Jonas Buhl"]
[Black "Olsen, Filip Boe"]
[Result "1-0"]
[ECO "B12"]
[WhiteElo "2470"]
[BlackElo "2414"]
[Annotator "ChessBase"]
[PlyCount "69"]
[EventDate "2019.04.13"]
[EventType "tourn"]
[EventCountry "DEN"]
[SourceTitle "playchess.com"]
[Source "ChessBase"]
[SourceQuality "1"]
[TimeControl "40/5400+30:1800+30"]

1. e4 {[%emt 0:00:00]} c6 {[%emt 0:00:00]} 2. d4 {[%emt 0:00:00]} d5 {[%emt 0:00:00]} 3. e5 {[%emt 0:00:00]} c5 {[%emt 0:00:08]} 4. dxc5 {[%emt 0:00:30]} e6 {[%emt 0:00:12]} 5. Nf3 {[%emt 0:00:34]} Bxc5 {[%emt 0:00:11]} 6. a3 {[%emt 0:01:44]} Ne7 {[%emt 0:00:15]} 7. Bd3 {[%emt 0:00:26]} Ng6 {[%emt 0:00:10]} 8. O-O {[%emt 0:01:08]} O-O {[%emt 0:00:41]} 9. Ng5 {[%emt 0:00:35]} Be7 {[%emt 0:15:04]} 10. Qh5 {[%emt 0:00:18]} Bxg5 {[%emt 0:00:27]} 11. Bxg5 {[%emt 0:00:05]} Qb6 {[%emt 0:03:40]} 12. Nd2 {[%emt 0:02:04]} Nd7 {[%emt 0:15:47]} 13. Nf3 {[%emt 0:06:36]} Re8 {[%emt 0:11:05]} 14. Be3 {[%emt 0:08:08]} Qc7 {[%emt 0:01:26]} 15. Ng5 {[%emt 0:05:32]} Ndf8 {[%emt 0:06:06]} 16. f4 {[%emt 0:02:15]} h6 {[%emt 0:09:30]} 17. Nf3 {[%emt 0:02:52]} Bd7 {[%emt 0:10:54]} 18. Rac1 {[%emt 0:10:23]} a6 {[%emt 0:03:34]} 19. c4 {[%emt 0:05:12]} dxc4 {[%emt 0:01:33]} 20. Bxc4 {[%emt 0:04:00]} Qb8 {[%emt 0:06:30]} 21. Nd4 {[%emt 0:05:39]} Ne7 {[%emt 0:01:07]} 22. Rfd1 {[%emt 0:07:29]} Rc8 {[%emt 0:03:22]} 23. Qh4 {[%emt 0:03:40]} b5 {[%emt 0:02:53]} 24. Ba2 {[%emt 0:06:43]} Nfg6 {[%emt 0:01:26]} 25. Qe1 {[%emt 0:02:12]} Qb7 {[%emt 0:00:37]} 26. Nb3 {[%emt 0:01:43]} Rxc1 {[%emt 0:03:05]} 27. Rxc1 {[%emt 0:00:04]} Nf5 {[%emt 0:01:11]} 28. Nc5 {[%emt 0:03:00]} Qa7 {[%emt 0:00:51]} 29. Bf2 {[%emt 0:01:36]} Nxf4 {[%emt 0:01:20]} 30. Qd2 {[%emt 0:03:36]} Nd5 {[%emt 0:00:52]} 31. Nxe6 {[%emt 0:01:56]} Nde3 {[%emt 0:00:34]} 32. Rc7 {[%emt 0:03:16]} Qb6 {[%emt 0:00:29]} 33. Qxd7 {[%emt 0:00:39]} fxe6 {[%emt 0:00:40]} 34. Bxe6+ {[%emt 0:00:37]} Kh8 {[%emt 0:00:06]} 35. Bxf5 {[%emt 0:00:41]} 1-0

[Event "DEN-ch 2019"]
[Site "Svendborg"]
[Date "2019.04.18"]
[Round "6.5"]
[White "Aabling-Thomsen, Jakob"]
[Black "Rasmussen, Allan Stig"]
[Result "1/2-1/2"]
[ECO "A25"]
[WhiteElo "2358"]
[BlackElo "2541"]
[Annotator "ChessBase"]
[PlyCount "179"]
[EventDate "2019.04.13"]
[EventType "tourn"]
[EventCountry "DEN"]
[SourceTitle "playchess.com"]
[Source "ChessBase"]
[SourceQuality "1"]
[TimeControl "40/5400+30:1800+30"]

1. c4 {[%emt 0:00:00]} e5 {[%emt 0:00:00]} 2. g3 {[%emt 0:00:00]} Nc6 {[%emt 0:00:00]} 3. Bg2 {[%emt 0:00:37]} g6 {[%emt 0:00:52]} 4. Nc3 {[%emt 0:06:30]} Bg7 {[%emt 0:00:09]} 5. h4 {[%emt 0:03:14]} h5 {[%emt 0:08:41]} 6. Rb1 {[%emt 0:05:44]} Nh6 {[%emt 0:04:30]} 7. b4 {[%emt 0:01:33]} d6 {[%emt 0:01:44]} 8. b5 {[%emt 0:05:37]} Nd4 {[%emt 0:04:16]} 9. d3 {[%emt 0:02:03]} O-O {[%emt 0:01:21]} 10. Bg5 {[%emt 0:12:10]} f6 {[%emt 0:01:56]} 11. Bd2 {[%emt 0:00:39]} Ng4 {[%emt 0:04:02]} 12. Nh3 {[%emt 0:11:14]} f5 {[%emt 0:15:58]} 13. Bg5 {[%emt 0:10:27]} Bf6 {[%emt 0:05:49]} 14. e3 {[%emt 0:09:13]} Ne6 {[%emt 0:01:04]} 15. Bxf6 {[%emt 0:00:31]} Rxf6 {[%emt 0:04:58]} 16. Qd2 {[%emt 0:01:40]} Rf8 {[%emt 0:18:10]} 17. Nd5 {[%emt 0:00:34]} Bd7 {[%emt 0:03:51]} 18. f3 {[%emt 0:03:47]} Nh6 {[%emt 0:00:41]} 19. e4 {[%emt 0:02:09]} Kg7 {[%emt 0:01:45]} 20. Ng5 {[%emt 0:01:27]} Nd4 {[%emt 0:01:45]} 21. O-O {[%emt 0:05:00]} c6 {[%emt 0:00:53]} 22. bxc6 {[%emt 0:01:16]} bxc6 {[%emt 0:00:05]} 23. Ne3 {[%emt 0:01:23]} f4 {[%emt 0:03:01]} 24. Nc2 {[%emt 0:01:49]} Nxc2 {[%emt 0:04:23]} 25. Qxc2 {[%emt 0:00:02]} fxg3 {[%emt 0:00:36]} 26. Rb7 {[%emt 0:00:14]} Nf7 {[%emt 0:00:18]} 27. f4 {[%emt 0:05:04]} Nxg5 {[%emt 0:01:38]} 28. fxg5 {[%emt 0:02:09]} Rb8 {[%emt 0:00:18]} 29. Rxf8 {[%emt 0:04:29]} Kxf8 {[%emt 0:00:01]} 30. Rxb8 {[%emt 0:03:04]} Qxb8 {[%emt 0:00:02]} 31. c5 {[%emt 0:00:19]} Ke7 {[%emt 0:01:44]} 32. d4 {[%emt 0:01:09]} Qb4 {[%emt 0:00:47]} 33. cxd6+ {[%emt 0:00:24]} Kxd6 {[%emt 0:00:04]} 34. dxe5+ {[%emt 0:00:31]} Kxe5 {[%emt 0:00:05]} 35. Qc1 {[%emt 0:00:24]} Be6 {[%emt 0:04:04]} 36. Qf1 {[%emt 0:00:37]} Qd4+ {[%emt 0:00:41]} 37. Kh1 {[%emt 0:00:01]} Qf2 {[%emt 0:00:23]} 38. Qc1 {[%emt 0:00:45]} c5 {[%emt 0:01:40]} 39. Qc3+ {[%emt 0:00:22]} Kf4 {[%emt 0:00:53]} 40. Qf6+ {[%emt 0:00:47]} Ke3 {[%emt 0:03:36]} 41. Qc3+ {[%emt 0:01:26]} Kf4 {[%emt 0:00:31]} 42. Qf6+ {[%emt 0:00:08]} Bf5 {[%emt 0:02:13]} 43. Qd6+ {[%emt 0:00:52]} Kg4 {[%emt 0:00:06]} 44. Qd1+ {[%emt 0:00:14]} Kxh4 {[%emt 0:00:10]} 45. exf5 {[%emt 0:01:00]} Qxf5 {[%emt 0:00:24]} 46. Qe2 {[%emt 0:09:40]} Kxg5 {[%emt 0:09:58]} 47. Qe7+ {[%emt 0:02:32]} Kf4 {[%emt 0:01:07]} 48. Qh4+ {[%emt 0:01:00]} Qg4 {[%emt 0:05:40]} 49. Qf6+ {[%emt 0:00:05]} Qf5 {[%emt 0:00:16]} 50. Qh4+ {[%emt 0:00:03]} Ke3 {[%emt 0:00:10]} 51. Qxg3+ {[%emt 0:00:04]} Kd4 {[%emt 0:01:10]} 52. Qb8 {[%emt 0:03:08]} c4 {[%emt 0:05:40]} 53. Qxa7+ {[%emt 0:00:13]} Kd3 {[%emt 0:00:20]} 54. Qa6 {[%emt 0:01:39]} g5 {[%emt 0:03:47]} 55. Qd6+ {[%emt 0:01:17]} Ke3 {[%emt 0:01:24]} 56. Qb6+ {[%emt 0:02:14]} Kd2 {[%emt 0:00:58]} 57. Qd4+ {[%emt 0:04:38]} Qd3 {[%emt 0:00:09]} 58. Qb2+ {[%emt 0:00:44]} Kd1 {[%emt 0:01:20]} 59. Qa1+ {[%emt 0:05:50]} Kc2 {[%emt 0:00:58]} 60. Qe1 {[%emt 0:00:23]} Kb2 {[%emt 0:01:10]} 61. Be4 {[%emt 0:03:12]} Qh3+ {[%emt 0:03:12]} 62. Kg1 {[%emt 0:00:01]} Kxa2 {[%emt 0:00:45]} 63. Qd2+ {[%emt 0:00:18]} Ka3 {[%emt 0:01:14]} 64. Qa5+ {[%emt 0:00:44]} Kb3 {[%emt 0:00:13]} 65. Qb5+ {[%emt 0:00:11]} Kc3 {[%emt 0:00:14]} 66. Qe5+ {[%emt 0:00:48]} Kb4 {[%emt 0:00:24]} 67. Qd6+ {[%emt 0:00:30]} Kb3 {[%emt 0:00:41]} 68. Qd1+ {[%emt 0:01:02]} Kc3 {[%emt 0:01:07]} 69. Qa1+ {[%emt 0:00:53]} Kb4 {[%emt 0:00:14]} 70. Qd4 {[%emt 0:00:22]} Qg3+ {[%emt 0:00:18]} 71. Kh1 {[%emt 0:00:18]} Qh3+ {[%emt 0:00:59]} 72. Kg1 {[%emt 0:00:02]} Qg3+ {[%emt 0:00:07]} 73. Kh1 {[%emt 0:00:02]} Qf4 {[%emt 0:00:47]} 74. Qb6+ {[%emt 0:01:42]} Kc3 {[%emt 0:00:03]} 75. Qc6 {[%emt 0:00:39]} h4 {[%emt 0:00:44]} 76. Bg2 {[%emt 0:00:27]} g4 {[%emt 0:00:33]} 77. Qc5 {[%emt 0:00:28]} Qd4 {[%emt 0:00:47]} 78. Qa3+ {[%emt 0:00:09]} Kd2 {[%emt 0:00:36]} 79. Qb4+ {[%emt 0:00:21]} Qc3 {[%emt 0:00:41]} 80. Qd6+ {[%emt 0:00:13]} Kc1 {[%emt 0:01:09]} 81. Qf4+ {[%emt 0:00:23]} Kb2 {[%emt 0:00:27]} 82. Qxg4 {[%emt 0:00:30]} Qe1+ {[%emt 0:00:36]} 83. Kh2 {[%emt 0:00:01]} c3 {[%emt 0:00:32]} 84. Qb4+ {[%emt 0:00:51]} Kc1 {[%emt 0:00:03]} 85. Qf4+ {[%emt 0:01:11]} Qd2 {[%emt 0:00:29]} 86. Qxd2+ {[%emt 0:00:31]} cxd2 {[%emt 0:00:57]} 87. Bf3 {[%emt 0:00:04]} d1=Q {[%emt 0:00:05]} 88. Bxd1 {[%emt 0:00:05]} Kxd1 {[%emt 0:00:03]} 89. Kh3 {[%emt 0:00:03]} Kd2 {[%emt 0:00:05]} 90. Kxh4 {[%emt 0:00:03]} 1/2-1/2

[Event "DEN-ch 2019"]
[Site "Svendborg"]
[Date "2019.04.19"]
[Round "7.2"]
[White "Ochsner, Bjorn Moller"]
[Black "Thybo, Jesper Sondergaard"]
[Result "0-1"]
[ECO "C63"]
[WhiteElo "2486"]
[BlackElo "2513"]
[Annotator "ChessBase"]
[PlyCount "102"]
[EventDate "2019.04.13"]
[EventType "tourn"]
[EventCountry "DEN"]
[SourceTitle "playchess.com"]
[Source "ChessBase"]
[SourceQuality "1"]
[TimeControl "40/5400+30:1800+30"]

1. e4 {[%emt 0:00:00]} e5 {[%emt 0:00:00]} 2. Nf3 {[%emt 0:00:00]} Nc6 {[%emt 0:00:00]} 3. Bb5 {[%emt 0:00:00]} f5 {[%emt 0:00:02]} 4. d3 {[%emt 0:00:00]} fxe4 {[%emt 0:00:08]} 5. dxe4 {[%emt 0:00:05]} Nf6 {[%emt 0:00:07]} 6. O-O {[%emt 0:00:11]} d6 {[%emt 0:00:08]} 7. Be3 {[%emt 0:05:20]} Be7 {[%emt 0:07:16]} 8. Bc4 {[%emt 0:02:16]} Na5 {[%emt 0:02:28]} 9. Be2 {[%emt 0:00:32]} O-O {[%emt 0:03:27]} 10. b4 {[%emt 0:30:35]} Nc6 {[%emt 0:00:52]} 11. b5 {[%emt 0:02:10]} Nb8 {[%emt 0:07:05]} 12. Bc4+ {[%emt 0:06:53]} Kh8 {[%emt 0:00:39]} 13. Ng5 {[%emt 0:02:40]} Qe8 {[%emt 0:02:20]} 14. Nc3 {[%emt 0:02:20]} Qg6 {[%emt 0:13:05]} 15. Qf3 {[%emt 0:23:56]} c6 {[%emt 0:41:04]} 16. Qg3 {[%emt 0:08:52]} Nh5 {[%emt 0:01:24]} 17. Nf7+ {[%emt 0:01:38]} Qxf7 {[%emt 0:00:10]} 18. Bxf7 {[%emt 0:00:06]} Rxf7 {[%emt 0:00:30]} 19. Qf3 {[%emt 0:02:25]} Rxf3 {[%emt 0:00:05]} 20. gxf3 {[%emt 0:00:01]} Be6 {[%emt 0:03:51]} 21. bxc6 {[%emt 0:03:50]} Nxc6 {[%emt 0:00:07]} 22. Rfd1 {[%emt 0:02:35]} b6 {[%emt 0:07:16]} 23. a4 {[%emt 0:01:07]} Bc4 {[%emt 0:02:00]} 24. Nb5 {[%emt 0:01:27]} Rd8 {[%emt 0:00:31]} 25. Rd2 {[%emt 0:01:50]} Nf4 {[%emt 0:03:38]} 26. Bxf4 {[%emt 0:01:29]} exf4 {[%emt 0:00:01]} 27. Rad1 {[%emt 0:00:21]} Ne5 {[%emt 0:00:32]} 28. Kg2 {[%emt 0:00:25]} Bf7 {[%emt 0:02:01]} 29. Nxa7 {[%emt 0:00:51]} Bh5 {[%emt 0:00:13]} 30. Rb1 {[%emt 0:00:23]} Bxf3+ {[%emt 0:00:31]} 31. Kf1 {[%emt 0:00:01]} Bxe4 {[%emt 0:00:20]} 32. Rxb6 {[%emt 0:00:43]} Nc4 {[%emt 0:00:57]} 33. Rd4 {[%emt 0:00:05]} Nxb6 {[%emt 0:01:23]} 34. Rxe4 {[%emt 0:00:01]} Bf6 {[%emt 0:00:34]} 35. Nc6 {[%emt 0:00:49]} Ra8 {[%emt 0:01:40]} 36. a5 {[%emt 0:00:25]} Nd7 {[%emt 0:00:15]} 37. Re6 {[%emt 0:01:29]} Ne5 {[%emt 0:01:12]} 38. Rxd6 {[%emt 0:00:29]} Nc4 {[%emt 0:00:13]} 39. Rd5 {[%emt 0:00:33]} Kg8 {[%emt 0:00:47]} 40. Ke2 {[%emt 0:00:31]} Ra6 {[%emt 0:00:24]} 41. Rc5 {[%emt 0:01:57]} f3+ {[%emt 0:03:46]} 42. Kd1 {[%emt 0:10:15]} Nd6 {[%emt 0:03:45]} 43. Nb4 {[%emt 0:00:15]} Ra8 {[%emt 0:01:50]} 44. a6 {[%emt 0:01:17]} Ne4 {[%emt 0:01:16]} 45. Rc4 {[%emt 0:00:53]} Nxf2+ {[%emt 0:01:20]} 46. Ke1 {[%emt 0:00:06]} Nh3 {[%emt 0:00:06]} 47. Rc7 {[%emt 0:01:04]} Bh4+ {[%emt 0:04:55]} 48. Kf1 {[%emt 0:00:27]} Re8 {[%emt 0:00:05]} 49. Nd3 {[%emt 0:00:56]} Nf4 {[%emt 0:00:08]} 50. Rc4 {[%emt 0:01:09]} Nxd3 {[%emt 0:00:12]} 51. Rxh4 {[%emt 0:00:06]} Re1# 0-1

[Event "DEN-ch 2019"]
[Site "Svendborg"]
[Date "2019.04.19"]
[Round "7.3"]
[White "Teplyi, Igor"]
[Black "Hansen, Sune Berg"]
[Result "0-1"]
[ECO "D90"]
[WhiteElo "2418"]
[BlackElo "2590"]
[Annotator "ChessBase"]
[PlyCount "94"]
[EventDate "2019.04.13"]
[EventType "tourn"]
[EventCountry "DEN"]
[SourceTitle "playchess.com"]
[Source "ChessBase"]
[SourceQuality "1"]
[TimeControl "40/5400+30:1800+30"]

1. d4 {[%emt 0:00:00]} Nf6 {[%emt 0:00:00]} 2. c4 {[%emt 0:00:00]} g6 {[%emt 0:00:36]} 3. Nc3 {[%emt 0:00:02]} d5 {[%emt 0:00:42]} 4. Nf3 {[%emt 0:01:49]} Bg7 {[%emt 0:03:18]} 5. h3 {[%emt 0:01:51]} O-O {[%emt 0:01:51]} 6. cxd5 {[%emt 0:00:06]} Nxd5 {[%emt 0:00:05]} 7. e4 {[%emt 0:00:07]} Nxc3 {[%emt 0:00:04]} 8. bxc3 {[%emt 0:00:04]} c5 {[%emt 0:00:04]} 9. Be2 {[%emt 0:00:09]} cxd4 {[%emt 0:02:50]} 10. cxd4 {[%emt 0:00:13]} Nc6 {[%emt 0:00:03]} 11. Be3 {[%emt 0:00:47]} f5 {[%emt 0:00:54]} 12. exf5 {[%emt 0:05:48]} Qa5+ {[%emt 0:07:18]} 13. Qd2 {[%emt 0:03:43]} Qxd2+ {[%emt 0:02:54]} 14. Kxd2 {[%emt 0:01:27]} Bxf5 {[%emt 0:01:22]} 15. Rhd1 {[%emt 0:23:30]} Rac8 {[%emt 0:15:28]} 16. Rac1 {[%emt 0:03:29]} Be6 {[%emt 0:10:35]} 17. Bc4 {[%emt 0:26:36]} Nxd4 {[%emt 0:03:56]} 18. Bxe6+ {[%emt 0:00:07]} Nxe6 {[%emt 0:00:04]} 19. Bxa7 {[%emt 0:01:24]} Ra8 {[%emt 0:13:43]} 20. Be3 {[%emt 0:00:47]} Rxa2+ {[%emt 0:00:10]} 21. Ke1 {[%emt 0:00:13]} Rb8 {[%emt 0:05:23]} 22. Rd7 {[%emt 0:04:12]} Bf6 {[%emt 0:03:12]} 23. Bb6 {[%emt 0:07:55]} Kf7 {[%emt 0:01:15]} 24. Rb1 {[%emt 0:02:58]} Ke8 {[%emt 0:01:38]} 25. Rd3 {[%emt 0:03:15]} Nf4 {[%emt 0:02:55]} 26. Rdb3 {[%emt 0:00:10]} Rc8 {[%emt 0:00:08]} 27. Kf1 {[%emt 0:01:54]} Rcc2 {[%emt 0:04:16]} 28. Ne1 {[%emt 0:01:36]} Rcb2 {[%emt 0:02:50]} 29. g3 {[%emt 0:05:22]} Nd5 {[%emt 0:01:46]} 30. R1xb2 {[%emt 0:02:21]} Rxb2 {[%emt 0:00:08]} 31. Rxb2 {[%emt 0:00:04]} Bxb2 {[%emt 0:00:05]} 32. Ba5 {[%emt 0:00:30]} Bc3 {[%emt 0:04:59]} 33. Bxc3 {[%emt 0:00:07]} Nxc3 {[%emt 0:00:01]} 34. Nd3 {[%emt 0:00:11]} Kd7 {[%emt 0:00:41]} 35. Ke1 {[%emt 0:00:16]} Kd6 {[%emt 0:01:25]} 36. Kd2 {[%emt 0:00:11]} Ne4+ {[%emt 0:00:11]} 37. Ke3 {[%emt 0:00:10]} Nc5 {[%emt 0:00:10]} 38. Nb4 {[%emt 0:00:40]} Na6 {[%emt 0:00:23]} 39. Nd3 {[%emt 0:00:25]} Kd5 {[%emt 0:00:43]} 40. Nf4+ {[%emt 0:01:11]} Kc4 {[%emt 0:00:30]} 41. Ne6 {[%emt 0:30:58]} Nb4 {[%emt 0:39:46]} 42. g4 {[%emt 0:00:00]} Nd5+ {[%emt 0:00:00]} 43. Ke4 {[%emt 0:00:00]} b5 {[%emt 0:00:00]} 44. Nd4 {[%emt 0:00:00]} Nf6+ {[%emt 0:00:00]} 45. Ke5 {[%emt 0:00:00]} Nd7+ {[%emt 0:00:00]} 46. Ke4 {[%emt 0:00:00]} Nc5+ {[%emt 0:00:00]} 47. Ke3 {[%emt 0:00:00]} b4 {[%emt 0:00:00]} 0-1

[Event "DEN-ch 2019"]
[Site "Svendborg"]
[Date "2019.04.19"]
[Round "7.5"]
[White "Rasmussen, Allan Stig"]
[Black "Bjerre, Jonas Buhl"]
[Result "1/2-1/2"]
[ECO "B94"]
[WhiteElo "2541"]
[BlackElo "2470"]
[Annotator "ChessBase"]
[PlyCount "139"]
[EventDate "2019.04.13"]
[EventType "tourn"]
[EventCountry "DEN"]
[SourceTitle "playchess.com"]
[Source "ChessBase"]
[SourceQuality "1"]
[TimeControl "40/5400+30:1800+30"]

1. e4 {[%emt 0:00:00]} c5 {[%emt 0:00:00]} 2. Nf3 {[%emt 0:00:00]} d6 {[%emt 0:00:00]} 3. d4 {[%emt 0:00:00]} cxd4 {[%emt 0:00:00]} 4. Nxd4 {[%emt 0:00:00]} Nf6 {[%emt 0:00:00]} 5. Nc3 {[%emt 0:00:08]} a6 {[%emt 0:00:00]} 6. Bg5 {[%emt 0:00:12]} Nbd7 {[%emt 0:01:00]} 7. Bc4 {[%emt 0:00:16]} Qb6 {[%emt 0:01:10]} 8. Bb3 {[%emt 0:00:15]} e6 {[%emt 0:01:19]} 9. Qd2 {[%emt 0:00:17]} Be7 {[%emt 0:02:12]} 10. O-O-O {[%emt 0:00:23]} Nc5 {[%emt 0:01:14]} 11. Rhe1 {[%emt 0:00:54]} Qc7 {[%emt 0:04:58]} 12. f4 {[%emt 0:01:48]} h6 {[%emt 0:02:48]} 13. Bxf6 {[%emt 0:14:46]} Bxf6 {[%emt 0:01:10]} 14. g4 {[%emt 0:12:04]} Bd7 {[%emt 0:07:52]} 15. Nf3 {[%emt 0:02:55]} O-O-O {[%emt 0:13:49]} 16. Qxd6 {[%emt 0:12:47]} Qxd6 {[%emt 0:11:54]} 17. Rxd6 {[%emt 0:00:04]} Bc6 {[%emt 0:00:40]} 18. Rxd8+ {[%emt 0:03:52]} Rxd8 {[%emt 0:01:17]} 19. g5 {[%emt 0:11:13]} Bxc3 {[%emt 0:06:18]} 20. bxc3 {[%emt 0:00:03]} Bxe4 {[%emt 0:04:14]} 21. Ne5 {[%emt 0:04:10]} Rf8 {[%emt 0:04:01]} 22. gxh6 {[%emt 0:01:16]} gxh6 {[%emt 0:00:13]} 23. Re3 {[%emt 0:07:47]} Bf5 {[%emt 0:05:15]} 24. Bc4 {[%emt 0:00:16]} Kc7 {[%emt 0:06:19]} 25. Bd3 {[%emt 0:02:06]} f6 {[%emt 0:04:29]} 26. Nf3 {[%emt 0:01:28]} Rg8 {[%emt 0:02:30]} 27. Bxf5 {[%emt 0:01:35]} exf5 {[%emt 0:00:05]} 28. Nd4 {[%emt 0:01:17]} Rg1+ {[%emt 0:01:23]} 29. Kb2 {[%emt 0:00:36]} Rf1 {[%emt 0:00:53]} 30. Rh3 {[%emt 0:03:57]} Rxf4 {[%emt 0:01:44]} 31. Rxh6 {[%emt 0:00:07]} Rf2 {[%emt 0:00:57]} 32. Rxf6 {[%emt 0:07:24]} Rxh2 {[%emt 0:01:27]} 33. Rxf5 {[%emt 0:00:08]} Kb6 {[%emt 0:02:12]} 34. Rf6+ {[%emt 0:01:29]} Ka7 {[%emt 0:01:24]} 35. Rf3 {[%emt 0:03:00]} Rh6 {[%emt 0:03:32]} 36. Nb3 {[%emt 0:00:54]} Na4+ {[%emt 0:02:46]} 37. Ka3 {[%emt 0:00:06]} Nb6 {[%emt 0:00:16]} 38. Nd4 {[%emt 0:08:35]} Rh7 {[%emt 0:01:48]} 39. Kb3 {[%emt 0:00:17]} Rc7 {[%emt 0:00:43]} 40. Rh3 {[%emt 0:00:35]} Nc4 {[%emt 0:01:23]} 41. a4 {[%emt 0:03:28]} Na5+ {[%emt 0:02:18]} 42. Ka3 {[%emt 0:01:27]} b6 {[%emt 0:03:38]} 43. Ne6 {[%emt 0:03:27]} Rc6 {[%emt 0:02:18]} 44. Nf4 {[%emt 0:00:28]} Rc5 {[%emt 0:02:37]} 45. Rd3 {[%emt 0:00:47]} Kb7 {[%emt 0:03:43]} 46. Nd5 {[%emt 0:01:57]} Nc4+ {[%emt 0:01:51]} 47. Kb3 {[%emt 0:00:58]} Na5+ {[%emt 0:01:14]} 48. Ka2 {[%emt 0:01:12]} Nc4 {[%emt 0:02:06]} 49. Rd4 {[%emt 0:00:45]} Na5 {[%emt 0:02:47]} 50. Ka3 {[%emt 0:00:46]} Nc6 {[%emt 0:00:49]} 51. Rd1 {[%emt 0:00:25]} Na5 {[%emt 0:00:38]} 52. Rd3 {[%emt 0:01:51]} Nc4+ {[%emt 0:00:40]} 53. Kb3 {[%emt 0:00:23]} Na5+ {[%emt 0:01:31]} 54. Ka2 {[%emt 0:00:10]} Nc6 {[%emt 0:01:26]} 55. Ka3 {[%emt 0:02:03]} Ne5 {[%emt 0:00:46]} 56. Rd1 {[%emt 0:00:49]} Nc4+ {[%emt 0:00:37]} 57. Ka2 {[%emt 0:01:38]} Na5 {[%emt 0:00:59]} 58. Rd3 {[%emt 0:00:34]} Nc6 {[%emt 0:00:13]} 59. Ka3 {[%emt 0:01:01]} Ne5 {[%emt 0:00:34]} 60. Rd4 {[%emt 0:00:53]} Nc6 {[%emt 0:01:02]} 61. Rd1 {[%emt 0:00:20]} Na5 {[%emt 0:00:46]} 62. Rd3 {[%emt 0:00:55]} Nc4+ {[%emt 0:00:39]} 63. Kb3 {[%emt 0:00:48]} Na5+ {[%emt 0:00:07]} 64. Kb4 {[%emt 0:00:14]} Nc6+ {[%emt 0:00:30]} 65. Ka3 {[%emt 0:00:09]} Ne5 {[%emt 0:00:18]} 66. Rd1 {[%emt 0:00:08]} Nc4+ {[%emt 0:00:59]} 67. Kb4 {[%emt 0:00:08]} Na5 {[%emt 0:00:21]} 68. Rd3 {[%emt 0:01:07]} Nc6+ {[%emt 0:00:18]} 69. Kb3 {[%emt 0:00:17]} Na5+ {[%emt 0:00:15]} 70. Ka2 {[%emt 0:02:13]} 1/2-1/2

[Event "DEN-ch 2019"]
[Site "Svendborg"]
[Date "2019.04.21"]
[Round "9.1"]
[White "Bjerre, Jonas Buhl"]
[Black "Antonsen, Mikkel"]
[Result "1/2-1/2"]
[ECO "B33"]
[WhiteElo "2470"]
[BlackElo "2426"]
[Annotator "ChessBase"]
[PlyCount "77"]
[EventDate "2019.04.13"]
[EventType "tourn"]
[EventCountry "DEN"]
[SourceTitle "playchess.com"]
[Source "ChessBase"]
[SourceQuality "1"]
[TimeControl "40/5400+30:1800+30"]

1. e4 {[%emt 0:00:08]} c5 {[%emt 0:00:00]} 2. Nf3 {[%emt 0:00:34]} Nc6 {[%emt 0:00:00]} 3. d4 {[%emt 0:00:36]} cxd4 {[%emt 0:00:11]} 4. Nxd4 {[%emt 0:00:05]} Nf6 {[%emt 0:00:05]} 5. Nc3 {[%emt 0:00:05]} e5 {[%emt 0:00:05]} 6. Ndb5 {[%emt 0:00:42]} d6 {[%emt 0:00:13]} 7. Bg5 {[%emt 0:01:03]} a6 {[%emt 0:00:28]} 8. Na3 {[%emt 0:00:09]} b5 {[%emt 0:00:13]} 9. Nd5 {[%emt 0:00:30]} Be7 {[%emt 0:01:17]} 10. Bxf6 {[%emt 0:00:06]} Bxf6 {[%emt 0:00:03]} 11. c3 {[%emt 0:00:11]} Bg5 {[%emt 0:01:03]} 12. Nc2 {[%emt 0:00:53]} Rb8 {[%emt 0:00:46]} 13. a4 {[%emt 0:04:25]} bxa4 {[%emt 0:00:30]} 14. Ncb4 {[%emt 0:00:10]} Nxb4 {[%emt 0:09:43]} 15. Nxb4 {[%emt 0:00:44]} Bd7 {[%emt 0:00:23]} 16. Bxa6 {[%emt 0:00:55]} Qa5 {[%emt 0:03:55]} 17. Qxd6 {[%emt 0:04:09]} Rb6 {[%emt 0:00:18]} 18. Qd3 {[%emt 0:00:25]} Be7 {[%emt 0:01:59]} 19. Nd5 {[%emt 0:02:24]} Rxb2 {[%emt 0:00:18]} 20. O-O {[%emt 0:00:35]} Qc5 {[%emt 0:03:41]} 21. Rad1 {[%emt 0:14:43]} Bg4 {[%emt 0:20:26]} 22. Rb1 {[%emt 0:16:05]} Be2 {[%emt 0:11:20]} 23. Qxe2 {[%emt 0:02:42]} Rxe2 {[%emt 0:00:40]} 24. Rb8+ {[%emt 0:01:25]} Bd8 {[%emt 0:01:37]} 25. Bb5+ {[%emt 0:01:35]} Qxb5 {[%emt 0:00:22]} 26. Rxb5 {[%emt 0:03:09]} Rxe4 {[%emt 0:06:32]} 27. Ra1 {[%emt 0:01:46]} O-O {[%emt 0:04:12]} 28. Rb4 {[%emt 0:01:50]} Rxb4 {[%emt 0:02:10]} 29. cxb4 {[%emt 0:00:37]} Bg5 {[%emt 0:00:05]} 30. Rxa4 {[%emt 0:01:08]} Rd8 {[%emt 0:00:04]} 31. Ra5 {[%emt 0:01:18]} f6 {[%emt 0:05:00]} 32. Kf1 {[%emt 0:03:17]} Kf7 {[%emt 0:00:06]} 33. Ke2 {[%emt 0:07:48]} Ke6 {[%emt 0:00:12]} 34. Ne3 {[%emt 0:00:44]} Bxe3 {[%emt 0:01:11]} 35. Kxe3 {[%emt 0:03:07]} Rb8 {[%emt 0:00:49]} 36. Ra7 {[%emt 0:07:36]} Rxb4 {[%emt 0:02:16]} 37. Rxg7 {[%emt 0:00:10]} Rh4 {[%emt 0:00:37]} 38. h3 {[%emt 0:01:26]} f5 {[%emt 0:00:08]} 39. Ra7 1/2-1/2